Cogmind - Beta 13 @@@ ROGUE MODE // 2024.06.02 @ 09:31:29 Player: karotgaemin Result: Destroyed by H-55 Commando with Assault Rifle Performance ------------- Evolutions (2) 1000 Regions Visited (4) 800 Robots Destroyed (51) 255 Value Destroyed (1444) 1444 Prototype IDs (2) 40 Alien Tech Used (0) 0 Bonus (70) 70 TOTAL SCORE: 3609 Bonus ------- High Alert Combat Kills 70 Cogmind --------- Core Integrity 0/550 Matter 213/300 Energy 60/125 System Corruption 0% Temperature Cool (0) Movement Treading (145) Location -8/Materials Parts ------- > --- POWER (2) -------- Light Ion Engine > --- PROPULSION (2) --- Advanced Treads > --- UTILITY (5) ------ Visual Processing Unit Improved Sensor Array Signal Interpreter Advanced Targeting Computer > --- WEAPON (2) ------- Mini Grenade Launcher Katana > --- INVENTORY (5) ---- (None) Peak State ------------ > --- POWER ------------ Light Nuclear Core Light Nuclear Core > --- PROPULSION ------- Advanced Treads Medium Treads > --- UTILITY ---------- Small Storage Unit Visual Processing Unit Signal Interpreter Seismic Detector Advanced Targeting Computer > --- WEAPON ----------- Advanced Beam Cannon Heavy Particle Cannon > --- INVENTORY -------- Deuterium Engine Medium Treads Improved Sensor Array Light EM Pulse Cannon Advanced Beam Cannon Heavy Particle Cannon Mini Grenade Launcher Concussive RPG [Rating: 29] Favorites ----------- Power Light Deuterium Engine Engine Light Deuterium Engine Power Core Light Nuclear Core Propulsion Wheel Treads Light Treads Wheel Wheel Utility Seismic Detector Device Seismic Detector Storage Small Storage Unit Processor Signal Interpreter Weapon Advanced Beam Cannon Energy Gun Particle Gun Energy Cannon Advanced Beam Cannon Ballistic Gun Improved Assault Rifle Ballistic Cannon Improved Light Cannon Launcher Mini Grenade Launcher Slashing Weapon Katana Build | -11 -10 -9 -9 -8 ------- Run | Yrd Mat Mat Min Mat Slots Evolved 4 | . . 2 . 2 Power 1 | . . . . 1 Propulsion . | . . . . . Utility 3 | . . 2 . 1 Weapon . | . . . . . Parts Attached 71 | 7 10 17 . 37 Power 16 | 1 1 3 . 11 Engine 14 | 1 1 3 . 9 Core 2 | . . . . 2 Reactor . | . . . . . Propulsion 19 | 2 2 5 . 10 Treads 13 | . . 3 . 10 Leg . | . . . . . Wheel 6 | 2 2 2 . . Hover . | . . . . . Flight . | . . . . . Utility 9 | 2 . 3 . 4 Device 4 | 1 . 1 . 2 Storage 1 | 1 . . . . Processor 4 | . . 2 . 2 Hackware . | . . . . . Protection . | . . . . . Artifact . | . . . . . Weapon 27 | 2 7 6 . 12 Energy Gun 3 | 1 2 . . . Energy Cannon 8 | . . 3 . 5 Ballistic Gun 7 | 1 3 1 . 2 Ballistic Cannon 4 | . 2 1 . 1 Launcher 4 | . . 1 . 3 Special Weapon . | . . . . . Impact Weapon . | . . . . . Slashing Weapon 1 | . . . . 1 Piercing Weapon . | . . . . . Special Melee Weapon . | . . . . . Unidentified Prototypes 2 | . 1 1 . . Parts Lost 21 | . . 3 . 18 Power 7 | . . . . 7 Propulsion 5 | . . 2 . 3 Utility 3 | . . 1 . 2 Weapon 6 | . . . . 6 Highest Loss Streak 6 | . . 2 . 6 To Critical Strikes 1 | . . . . 1 Average Slot Usage (%) 95 | . 99 95 100 91 Engine 11 | . 14 11 11 11 Treads 8 | . . 3 22 17 Wheel 12 | . 27 15 . . Device 14 | . 14 17 11 12 Storage 9 | . 14 11 11 4 Processor 15 | . . 13 22 27 Energy Gun 3 | . 11 . . . Energy Cannon 8 | . . 12 22 9 Ballistic Gun 6 | . 8 8 . 3 Ballistic Cannon 3 | . 7 1 . 2 Naked Turns . | . . . . . Heaviest Build 30 | 14 19 24 21 30 Greatest Support 56 | 26 26 40 40 56 Greatest Overweight (x) 6 | . . 6 . 1 Average Overweight (x) . | . . . . . Largest Inventory Capacity 8 | 8 8 8 8 8 Average Capacity 7 | 7 8 8 8 6 Most Carried 8 | 4 8 8 8 8 Average Carried 6 | 1 6 7 8 4 Final Capacity 8 | 8 8 8 8 5 Final Carried 8 | 4 8 8 8 . Class Distribution -------------------- 61% | Mutant 21% | Scavenger-Mutant 15% | Scavenger-Skirmisher Dominant Class ---------------- Mutant | -10/Materials Mutant | -9/Materials Scavenger-Mutant | -9/Mines Scavenger-Skirmisher | -8/Materials Resources | -11 -10 -9 -9 -8 ----------- Run | Yrd Mat Mat Min Mat Matter Collected 1228 | 274 64 397 . 493 Remotely . | . . . . . Salvage Created 1476 | 30 139 550 . 757 Parts 100 | 3 12 35 . 50 Haulers Intercepted . | . . . . . Recyclers Shooed 1 | . . . . 1 Parts Field Recycled . | . . . . . Retrieved Matter . | . . . . . Parts Self-Destructed . | . . . . . Prevented . | . . . . . Kills | -11 -10 -9 -9 -8 ------- Run | Yrd Mat Mat Min Mat Combat Hostiles Destroyed 40 | . 5 16 . 19 Guns 17 | . 3 9 . 5 Cannons 18 | . 2 7 . 9 AOE 5 | . . . . 5 Classes Destroyed 12 | 1 3 2 . 6 Worker 2 | . . 1 . 1 Builder 2 | . . . . 2 Tunneler 1 | 1 . . . . Operator 1 | . . . . 1 Watcher 5 | . 1 3 . 1 Swarmer 13 | . 3 8 . 2 Cutter 3 | . . . . 3 Grunt 12 | . 2 4 . 6 Sentry 7 | . . 4 . 3 Specialist 2 | . . . . 2 Hunter 2 | . . . . 2 Heavy 1 | . . . . 1 Best Kill Streak 5 | 1 3 5 . 5 Combat Bots Only 4 | . 3 4 . 3 Max Kills in Single Turn 2 | 1 1 2 . 2 Gunslinging . | . . . . . Exploded 1 | . . . . 1 Melee . | . . . . . Uniques/NPCs Destroyed . | . . . . . Combat | -11 -10 -9 -9 -8 -------- Run | Yrd Mat Mat Min Mat Hostile Shots Fired 318 | . 21 70 . 227 Missed 92 | . 6 19 . 67 Damage Taken 3549 | . 178 565 . 2806 Core 710 | . 16 135 . 559 Absorbed by Shields . | . . . . . Core Remaining (%) 86 | 100 93 . 66 . Volleys Fired 139 | 4 16 47 . 72 Largest 2 | 2 2 2 . 2 Hottest 150 | 60 104 150 . 150 Shots Fired 259 | 8 32 84 . 135 Gun 122 | 8 28 51 . 35 Cannon 130 | . 4 33 . 93 Launcher 7 | . . . . 7 Special . | . . . . . Kinetic 131 | 4 16 56 . 55 Thermal 99 | . 4 28 . 67 Explosive 7 | . . . . 7 Electromagnetic 22 | 4 12 . . 6 Robot Hit Streak 15 | 2 8 13 . 15 Robot Miss Streak 6 | 2 3 2 . 6 Penetration Max . | . . . . . Secondary Targets 1 | . . 1 . . Max Gunslinging Chain 1 | . . 1 . . Shots Hit Robots 179 | 4 20 59 . 96 Core Hits 77 | 2 10 19 . 46 Critical Kills . | . . . . . Critical Parts Destroyed . | . . . . . Critical Strikes . | . . . . . Melee Attacks . | . . . . . Impact . | . . . . . Slashing . | . . . . . Piercing . | . . . . . Sneak Attacks . | . . . . . Combat Hostiles . | . . . . . Follow-up Attacks . | . . . . . Damage Inflicted 4038 | 39 260 1117 . 2622 Guns 1287 | 39 195 486 . 567 Cannons 2069 | . 40 631 . 1398 Explosions 682 | . 25 . . 657 Melee . | . . . . . Ramming . | . . . . . Kinetic 1552 | 14 116 594 . 828 Thermal 1696 | . 42 523 . 1131 Explosive 527 | . . . . 527 Electromagnetic 254 | 25 102 . . 127 Impact 9 | . . . . 9 Slashing . | . . . . . Piercing . | . . . . . Highest Corruption . | . . . . . Average Corruption . | . . . . . Corruption Purged . | . . . . . Corruption Blocked . | . . . . . Overload Shots . | . . . . . Overflow Damage 92 | . . 17 . 75 Projectiles 42 | . . 17 . 25 Explosions 50 | . . . . 50 Melee . | . . . . . Knockbacks 6 | . . . . 6 Impact . | . . . . . Kinetic 6 | . . . . 6 Secondary . | . . . . . Self-Inflicted Damage 293 | . . . . 293 Shots 7 | . . . . 7 Rammed . | . . . . . Targets Rammed . | . . . . . Kicked . | . . . . . Crushed . | . . . . . Highest Temperature 546 | 20 168 369 . 546 Average Temperature 145 | 15 58 138 . 168 Received Heat Transfer 666 | . 75 177 . 414 Effects 18 | . . 5 . 13 Shutdowns 4 | . . . . 4 Energy Bleed 3 | . . 1 . 2 Interference 7 | . . 3 . 4 Short Circuit 2 | . . 1 . 1 Damage (minor) 2 | . . . . 2 Siege Activations . | . . . . . Robots Corrupted . | . . . . . Combat Hostiles . | . . . . . Parts Fried . | . . . . . Impact Corruptions . | . . . . . Robots Melted . | . . . . . Combat Hostiles . | . . . . . Parts Melted 6 | . . 5 . 1 Heat Transferred 2703 | . 87 851 . 1765 Parts Sabotaged . | . . . . . Parts Stolen . | . . . . . Parts Stripped . | . . . . . Power Chain Reactions 3 | . 1 . . 2 Alert | -11 -10 -9 -9 -8 ------- Run | Yrd Mat Mat Min Mat Peak Influence 594 | 5 152 357 100 594 Initial 100 | . 3 5 100 39 Average 192 | 2 67 213 100 304 Maximum Alert Level 2 | . . 1 . 2 Low Security (%) 58 | 100 100 35 100 34 Level 1 31 | . . 64 . 33 Level 2 10 | . . . . 31 Level 3 . | . . . . . Level 4 . | . . . . . Level 5 . | . . . . . High Security . | . . . . . Max Security . | . . . . . Squads Dispatched 9 | . 1 . . 8 Investigation 1 | . . . . 1 Extermination . | . . . . . Reinforcement 6 | . 1 . . 5 Assault . | . . . . . Garrison 2 | . . . . 2 Intercept . | . . . . . Searches Triggered . | . . . . . Construction Impeded 1 | . . . . 1 Haulers Reinforced . | . . . . . Active Scanning Responses . | . . . . . Cargo Convoy Interrupts . | . . . . . Stealth | -11 -10 -9 -9 -8 --------- Run | Yrd Mat Mat Min Mat Distress Signals 3 | . . 1 . 2 Communications Jammed . | . . . . . Distress Signals . | . . . . . Times Spotted 65 | . 9 20 . 36 Peak Tracking Total 6 | . 3 5 . 6 Tactical Retreats 9 | . . 1 . 8 Traps | -11 -10 -9 -9 -8 ------- Run | Yrd Mat Mat Min Mat Traps Triggered 1 | . 1 . . . Indirectly . | . . . . . Trap Hack Attempts . | . . . . . Triggered . | . . . . . Disarmed . | . . . . . Reprogrammed . | . . . . . Reused . | . . . . . Traps Extracted . | . . . . . Installed . | . . . . . Triggered . | . . . . . Machines | -11 -10 -9 -9 -8 ---------- Run | Yrd Mat Mat Min Mat Machines Disabled 4 | . . . . 4 Max in Single Turn 1 | . . . . 1 Machines Repaired . | . . . . . Machines Dismantled . | . . . . . Machines Sabotaged . | . . . . . Overloaded Fab Kills . | . . . . . Hacking | -11 -10 -9 -9 -8 --------- Run | Yrd Mat Mat Min Mat Machines Accessed 1 | . . . . 1 Terminals . | . . . . . Fabricators . | . . . . . Repair Stations . | . . . . . Recycling Units . | . . . . . Scanalyzers . | . . . . . Garrison Access 1 | . . . . 1 Total Hacks 3 | . . . . 3 Successful . | . . . . . Failed 3 | . . . . 3 Catastrophic . | . . . . . Database Lockouts . | . . . . . Manual . | . . . . . Terminals . | . . . . . Fabricators . | . . . . . Repair Stations . | . . . . . Recycling Units . | . . . . . Scanalyzers . | . . . . . Garrison Access 3 | . . . . 3 Terminal Hacks . | . . . . . Fabricator Hacks . | . . . . . Repair Station Hacks . | . . . . . Recycling Unit Hacks . | . . . . . Scanalyzer . | . . . . . Garrison Access Hacks . | . . . . . Unauthorized Hacks . | . . . . . Terminals . | . . . . . Fabricators . | . . . . . Repair Stations . | . . . . . Recycling Units . | . . . . . Scanalyzers . | . . . . . Garrison Access . | . . . . . Data Cores Recovered 1 | . . . . 1 Used . | . . . . . Hacking Detections 1 | . . . . 1 Full Trace Events 1 | . . . . 1 Feedback Events . | . . . . . Feedback Blocked . | . . . . . Robot Schematics Acquired . | . . . . . Robots Built . | . . . . . Authchips . | . . . . . Time . | . . . . . Total Robot Build Rating . | . . . . . Part Schematics Acquired . | . . . . . Parts Built . | . . . . . Authchips . | . . . . . Time . | . . . . . Total Part Build Rating . | . . . . . Parts Repaired . | . . . . . Time . | . . . . . Parts Recycled . | . . . . . Recycled Matter . | . . . . . Retrieved Matter . | . . . . . Retrieved Components . | . . . . . Parts Scanalyzed . | . . . . . Part Schematics Acquired . | . . . . . Parts Damaged . | . . . . . Bothacking | -11 -10 -9 -9 -8 ------------ Run | Yrd Mat Mat Min Mat Used RIF Installer . | . . . . . Robots Hacked . | . . . . . Non-combat . | . . . . . Combat . | . . . . . Robot Hacks Applied . | . . . . . Relay Couplers Released . | . . . . . Fabnet Peak Effective % . | . . . . . Robots Rewired . | . . . . . Allies Hacked . | . . . . . Hacks Repelled . | . . . . . Allies | -11 -10 -9 -9 -8 -------- Run | Yrd Mat Mat Min Mat Total Allies . | . . . . . Largest Group . | . . . . . Highest-Rated Group . | . . . . . Highest-Rated Ally . | . . . . . Total Orders . | . . . . . Ally Attacks . | . . . . . Total Damage . | . . . . . Kills . | . . . . . Allies Corrupted . | . . . . . Allies Melted . | . . . . . Intel | -11 -10 -9 -9 -8 ------- Run | Yrd Mat Mat Min Mat Robot Analysis Total . | . . . . . Derelict Logs Recovered . | . . . . . Drone Launches . | . . . . . Drone Recoveries . | . . . . . Exploration | -11 -10 -9 -9 -8 ------------- Run | Yrd Mat Mat Min Mat Turns Passed 2369 | 90 598 718 150 813 Spaces Moved 1385 | 69 509 422 84 301 Core 6 | 2 . 4 . . Treads 471 | . . 86 84 301 Legs . | . . . . . Wheels 908 | 67 509 332 . . Hover . | . . . . . Flight . | . . . . . Fastest Speed 50 | 50 90 80 160 145 Average Speed 116 | 88 90 115 160 156 Slowest Speed 350 | 90 90 350 160 225 Overloaded Moves . | . . . . . Propulsion Burnouts . | . . . . . Robots Hopped . | . . . . . Cave-ins Triggered . | . . . . . Exploration Rate (%) 31 | 6 70 32 26 24 Regions Visited 4 Branch Regions 1 Pre-discovered Areas . | . . . . . Known Exits Taken 2 | . . 1 1 . Unknown Exits Taken 2 | 1 1 . . . Scrap Searched 1 | . . . 1 . Spaces Dug . | . . . . . Terrain Destroyed 114 | . 6 2 . 106 Melee . | . . . . . Projectile 13 | . . 2 . 11 AOE 101 | . 6 . . 95 Terrain Rammed . | . . . . . Walls Destroyed . | . . . . . Machines Disabled . | . . . . . Actions | -11 -10 -9 -9 -8 --------- Run | Yrd Mat Mat Min Mat Total 1886 | 90 619 571 100 506 Wait 206 | . 64 56 17 69 Move 1381 | 68 508 421 83 301 Hop . | . . . . . Pick Up 60 | 11 12 17 . 20 Fast Attach 3 | . 1 1 . 1 Attach 35 | 7 1 6 . 21 Detach . | . . . . . Swap 33 | . 8 10 . 15 Drop 29 | . 9 13 . 7 Fire 139 | 4 16 47 . 72 Melee . | . . . . . Ram . | . . . . . Kick . | . . . . . Crush . | . . . . . Escape Stasis . | . . . . . Rewire . | . . . . . Trap . | . . . . . Miscellaneous . | . . . . . Route ------- -11/Scrapyard -10/Materials (discovered 3 exits: [*Mat x2] / [*Min]) -9/Materials -9/Mines -8/Materials (discovered 1 exit: [*Fac]) History --------- Turn | Location | Event 15 | -11/Scrapyard | Discovered new exit (range 15) 91 | -11/Scrapyard | Entered Materials 303 | -10/Materials | Build established: Mutant 377 | -10/Materials | Discovered new exit (range 8) 571 | -10/Materials | Discovered new exit (range 9) 622 | -10/Materials | Discovered new exit (range 8) 689 | -10/Materials | Entered another Materials area 689 | -9/Materials | Evolved 2 slots: Utility x2 977 | -9/Materials | Discovered new exit (range 16) 1404 | -9/Materials | Identified exit to Mines 1407 | -9/Materials | Entered Mines 1413 | -9/Mines | Assembled infested the area 1418 | -9/Mines | Assisted by a Guerilla fighting off Assembled 1433 | -9/Mines | Met a Derelict bent on vengeance 1541 | -9/Mines | Discovered new exit (range 10) 1556 | -9/Mines | Identified exit to Materials 1557 | -9/Mines | Entered Materials 1557 | -8/Materials | Evolved 2 slots: Power x1, Utility x1 1654 | -8/Materials | Build established: Scavenger-Mutant 1982 | -8/Materials | Core integrity fell below 50% 2011 | -8/Materials | Lost 6 parts (3p1u2w) 2240 | -8/Materials | Lost 3 parts (1n2w) 2250 | -8/Materials | Garrison activated, responded to threat 2257 | -8/Materials | Build established: Scavenger-Skirmisher 2319 | -8/Materials | Discovered new exit (range 6) 2334 | -8/Materials | Core integrity fell below 20% 2370 | -8/Materials | Destroyed by H-55 Commando with Assault Rifle Last Messages --------------- The unstable cave ceiling collapses. K-01 Serf collects debris. Penetrated by Slug. K-01 Serf collects debris. Acquired 14 matter. Penetrated by Slug. K-01 Serf collects debris. Acquired Lgt. Ion Engine. Penetrated by Slug. Adv. Beam Cannon destroyed. K-01 Serf collects debris. Penetrated by Slug. K-01 Serf collects debris. Critical hit (Destroy). Adv. Treads destroyed. Slug penetrates Wall. Destroyed Targeting Computer. K-01 Serf collects debris. Terminal disabled. Penetrated by Slug. Map ----- +----------------------------------------------------+ | | | | | | | | | | | | | | | | | | | ??# # #####?????????????????? | | ??# #?????????????????? | | ??# ! """ #?????????????????? | | ?## "G" #?????????????????? | | ?# " " #?????????????????? | | ?## k #?????????????????? | | ## # ##""###?????????????????? | | # =[x% +???x?????????????? | | # = #######????x???????????? | | # =# ??????????????????? | | # x# # < x ??????????????? | | # !!= # # ??????????? | | # !== # #?##+####### ?????????? | | # !== # = #??????????????????????? | | # + #??????????????????????? | | # # #??????????????????????? | | # """ !# @#??????????????????????? | | # """ # #??????????????????????? | | # """ =# #??????????????????????? | | # # #??????????????????????? | | # ##### ??????????????????????? | | ##???? ??????????????????????? | | ?????# ??????????????????????? | | ##### h ???????????x??????????? | | # """ ??????????????????????? | | # "T ??????????????????????? | | # ##?????????????????????? | | #! # #??????????????????????? | | # !=# #??????????????????????? | | # ! +[ #??????????????????????? | | ######## #??????????????????????? | | # ## ##?????????????????????? | | # # #?????????????????????? | | # !/ # #?????????????????????? | | # /= [+ T #?????????????????????? | | # # ####??????????????????? | | # # % ## ##?????????????????? | | # ### ### ##????????????????? | | ######## # # ##???????????????? | | ???????# ############# #???????? | | ???????## %= #??????? | +----------------------------------------------------+ Best States ------------- Heat Dissipation 31 Energy Generation 23 Energy Capacity 335 Matter Stores 300 Matter Capacity 300 Sight Range 18 Robot Scan Range 15 Terrain Scan Density 10 Evasion (%) 44 Targeting Accuracy 8 Recoil Reduction 2 Item Schematics ----------------- None Robot Schematics ------------------ None Fabricated ------------ Nothing Alien Tech Used ----------------- None Achievements -------------- None Challenges ------------ None Game ------ Seed MakeshiftShockPlatform Manual? 0 Play Time 00:24:19 Cumulative 11.9 hours Start 2024.06.02 @ 09:11:24 End 2024.06.02 @ 09:31:29 Sessions 1 Manual Loads 0 Difficulty Rogue Special Mode None Game No. 32 Rogue 32 Adventurer 0 Explorer 0 Win Type - Total 0 Types 0/0/0/0/0/0/0/0/0 Lore% 8 Gallery% 23 Achievement% 16 Wizard Run 0 Options --------- Layout 1 ASCII 0 Keyboard 0 Movement Mouse Keybinds 0 Fullscreen 2 Font 24/Smallcaps Map View 50x35 Zoom Use 0% Tactical HUD 0 Map Filters NONE Filters NONE Steam 1 RUN: c68422ca-9a81-43c5-8f9f-d0e9935ed9ed